bitfinex-derivatives/quotes_ETHF0:USTF0_20250602
["timestamp","ask_amount","ask_price","bid_price","bid_amount"]
[1748860829630,1.2557,2485.9,2485.8,0.80419]
[1748860829832,20.94286,2485.9,2485.8,0.80419]
[1748860830026,20.1387,2485.9,2485.8,0.80419]
[1748860830526,0.00403042,2486.0,2485.9,0.80416]
[1748860830731,0.00403042,2486.0,2485.9,2.12046]
[1748860830928,0.80816042,2486.0,2485.9,3.35048453]
[1748860831130,0.00403042,2486.0,2485.9,3.35048453]
[1748860832636,0.80816042,2486.0,2485.9,3.35048453]
[1748860833436,0.80816042,2486.0,2485.9,1.22988596]
[1748860833637,0.80816042,2486.0,2485.9,2.03404596]
[1748860834536,0.80816042,2486.0,2485.9,1.22988596]
[1748860834733,0.80419,2485.8,2485.7,0.80422]
[1748860834945,0.80426,2485.6,2485.5,0.00604558]
[1748860835242,0.80426,2485.6,2485.5,1.23698227]
[1748860836149,3.27563,2485.7,2485.6,0.80426]
[1748860838348,2.4714,2485.7,2485.6,0.80426]
[1748860838543,1.2602,2485.7,2485.6,0.80426]
[1748860838744,2.06326,2485.9,2485.8,0.80419]
[1748860839048,20.93826,2485.9,2485.8,0.80419]
[1748860839844,22.20556,2485.9,2485.8,0.80419]
[1748860840049,0.80422,2485.8,2485.7,0.80421]
[1748860840850,0.80424,2485.7,2485.6,0.80424]
[1748860841142,0.80424,2485.7,2485.6,2.03642089]
[1748860841348,2.07152,2485.8,2485.7,0.80423]
[1748860842247,0.80426,2485.7,2485.6,0.80424]
[1748860842439,0.80426,2485.7,2485.6,2.03642303]
[1748860842642,0.80426,2485.7,2485.6,3.42862303]
[1748860844046,0.80426,2485.7,2485.6,2.19644]
[1748860844353,19.6762,2485.8,2485.7,0.80423]
[1748860844545,18.872,2485.8,2485.7,2.17043]
[1748860845251,0.80416,2485.9,2485.8,0.80419]
[1748860845446,18.871,2485.9,2485.8,0.80419]
[1748860845850,0.00403042,2486.0,2485.9,0.80416]
[1748860846047,18.87503042,2486.0,2485.9,0.80416]
[1748860846243,19.67916042,2486.0,2485.9,3.41816]
[1748860846653,19.67916042,2486.0,2485.9,2.614]
[1748860846850,0.80416,2485.9,2485.8,0.80419]
[1748860847955,2.11136,2485.9,2485.8,0.80419]
[1748860850057,1.3072,2485.9,2485.8,0.80419]
[1748860850654,0.00403042,2486.0,2485.9,0.80416]
[1748860850957,18.87103042,2486.0,2485.9,0.80416]
[1748860851557,19.67516042,2486.0,2485.9,0.80416]
[1748860851753,18.87103042,2486.0,2485.9,0.80416]
[1748860851959,0.00403042,2486.0,2485.9,0.80416]
[1748860852148,0.00403042,2486.0,2485.9,3.36256]
[1748860853958,0.80816042,2486.0,2485.9,0.80416]
[1748860854151,0.80816042,2486.0,2485.9,2.03537683]
[1748860854353,0.80816042,2486.0,2485.9,1.23121683]
[1748860854559,0.87885831,2486.0,2485.9,1.23121683]
[1748860854960,0.07472831,2486.0,2485.9,2.03537683]
[1748860855269,0.07472831,2486.0,2485.9,3.36227683]
[1748860855560,0.00403042,2486.0,2485.9,3.36227683]
[1748860855862,0.80816042,2486.0,2485.9,3.36227683]
[1748860856864,0.80816042,2486.0,2485.9,3.36254465]
[1748860857059,0.80816042,2486.0,2485.9,1.23148465]
[1748860857365,2.07676042,2486.0,2485.9,1.23148465]
[1748860857865,2.07676042,2486.0,2485.9,2.03564465]
[1748860858567,2.07676042,2486.0,2485.9,2.03585746]
[1748860858858,2.07676042,2486.0,2485.9,1.23169746]
[1748860859864,2.07676042,2486.0,2485.9,2.03585746]
[1748860860768,1.27263042,2486.0,2485.9,2.03575317]
[1748860861064,2.07676042,2486.0,2485.9,2.03575317]
[1748860861465,0.00403042,2486.0,2485.9,2.03575317]
[1748860861658,0.00403042,2486.0,2485.9,3.35405317]
[1748860863664,0.00403042,2486.0,2485.9,3.35311525]
[1748860864061,18.86103042,2486.0,2485.9,3.35311525]
[1748860865365,0.00403042,2486.0,2485.9,3.35311525]
[1748860865565,18.86003042,2486.0,2485.9,3.35311525]
[1748860866571,0.00403042,2486.0,2485.9,3.35311525]
[1748860867374,0.00403042,2486.0,2485.9,3.35238774]
[1748860868472,0.00403042,2486.0,2485.9,4.55290324]
[1748860871470,0.00403042,2486.0,2485.9,4.5525869]
[1748860874871,0.80398,2486.6,2486.5,0.80394]
[1748860875173,2.4704,2486.6,2486.5,0.798189]
[1748860875479,20.84654,2486.6,2486.5,2.0291386]
[1748860875679,22.12234,2486.6,2486.5,2.0291386]
[1748860876972,3.27434,2486.6,2486.5,2.0291386]
[1748860877170,1.1946,2486.6,2486.5,2.0291386]
[1748860877477,18.847,2486.6,2486.5,3.4161386]
[1748860877776,3.22655,2486.9,2486.8,0.80387]
[1748860878281,22.07155,2486.9,2486.8,0.80387]
[1748860878774,0.8039,2486.8,2486.7,0.80387]
[1748860879171,2.1733,2486.8,2486.7,0.80387]
[1748860879572,0.8039,2486.7,2486.6,2.14411]
[1748860879771,0.8039,2486.7,2486.6,3.37295355]
[1748860880379,0.8039,2486.7,2486.6,1.22884355]
[1748860881279,0.80397,2486.6,2486.5,0.80393]
[1748860881579,0.80397,2486.6,2486.5,2.032383]
[1748860882280,0.80397,2486.6,2486.5,2.032423]
[1748860882978,0.80397,2486.6,2486.5,2.03238968]
[1748860883672,0.80397,2486.6,2486.5,0.80397]
[1748860887078,19.64097,2486.6,2486.5,3.34618192]
[1748860887667,19.64097,2486.6,2486.5,0.80397]
[1748860889280,19.63897,2486.6,2486.5,0.80397]
[1748860889984,19.63794,2486.7,2486.6,0.80389]
[1748860890378,0.80397,2486.6,2486.5,0.80395]
[1748860890577,0.80397,2486.6,2486.5,2.03178162]
[1748860891082,0.80397,2486.6,2486.5,0.80395]
[1748860891083,2.18997,2486.6,2486.5,0.80395]
[1748860893486,0.80397,2486.5,2486.4,8.19778]
[1748860893687,3.29537,2486.5,2486.4,8.19778]
[1748860893888,3.29537,2486.5,2486.4,4.01178]
[1748860894588,22.12637,2486.5,2486.4,4.01178]
[1748860896580,22.12637,2486.5,2486.4,0.80398]
[1748860896880,22.12637,2486.5,2486.4,4.01178]
[1748860900389,22.12637,2486.5,2486.4,5.24099073]
[1748860901285,22.12637,2486.5,2486.4,5.24088273]
[1748860902587,22.12637,2486.5,2486.4,2.03308273]
[1748860902787,22.12637,2486.5,2486.4,4.01178]
[1748860902987,22.12637,2486.5,2486.4,5.2413249]
[1748860903486,22.12637,2486.5,2486.4,2.0335249]
[1748860903687,22.12637,2486.5,2486.4,6.44155921]
[1748860904186,3.29537,2486.5,2486.4,6.44155921]
[1748860904387,22.11937,2486.5,2486.4,6.44255445]
[1748860905581,20.81787,2486.5,2486.4,6.44255445]
[1748860906888,20.81787,2486.5,2486.4,6.44508588]
[1748860907089,1.99387,2486.5,2486.4,6.44508588]
[1748860907287,20.81587,2486.5,2486.4,6.44508588]
[1748860910788,20.81587,2486.5,2486.4,5.21390444]
[1748860910989,20.81587,2486.5,2486.4,1.23145889]
[1748860910990,19.62597,2486.5,2486.4,1.23145889]
[1748860911193,0.80403,2486.3,2486.2,1.20212444]
[1748860911389,0.80413,2486.0,2485.9,1.20212444]
[1748860911594,19.62215,2486.0,2485.9,0.80416]
[1748860912092,0.80416,2485.9,2485.8,6.45389444]
[1748860912787,0.80416,2485.9,2485.8,3.24609444]
[1748860913189,19.62116,2485.9,2485.8,3.24609444]
[1748860913384,19.62116,2485.9,2485.8,2.04397]
[1748860913793,19.62116,2485.9,2485.8,3.38867]
[1748860916086,18.817,2485.9,2485.8,3.38867]
[1748860916293,19.62116,2485.9,2485.8,3.38867]
[1748860918399,19.61916,2485.9,2485.8,3.38867]
[1748860919695,0.80416,2485.9,2485.8,3.38867]
[1748860919899,19.61916,2485.9,2485.8,3.38867]
[1748860921802,19.61916,2485.9,2485.8,2.5845]
[1748860922002,19.61916,2485.9,2485.8,1.2398]
[1748860922301,0.80414,2486.1,2486.0,0.8041]
[1748860922502,19.61714,2486.1,2486.0,0.8041]
[1748860923106,0.80416,2486.0,2485.9,0.80414]
[1748860923293,19.61716,2486.0,2485.9,5.30784]
[1748860924002,20.21846,2486.0,2485.9,6.53268114]
[1748860924600,0.6023,2486.0,2485.9,6.53268114]
[1748860924805,1.40643,2486.0,2485.9,6.53268114]
[1748860925199,1.40643,2486.0,2485.9,6.53223943]
[1748860925606,1.40643,2486.0,2485.9,5.72809943]
[1748860925810,1.40643,2486.0,2485.9,4.43219943]
[1748860926009,1.40643,2486.0,2485.9,6.57675943]
[1748860929202,1.40643,2486.0,2485.9,6.57712116]
[1748860929902,1.40643,2486.0,2485.9,6.57725362]
[1748860930307,1.40643,2486.0,2485.9,4.43269362]
[1748860930607,2.70293,2486.0,2485.9,5.23685362]
[1748860934010,2.70293,2486.0,2485.9,4.01196]
[1748860940420,2.70293,2486.0,2485.9,5.24050954]
[1748860941222,2.70293,2486.0,2485.9,5.24062831]
[1748860942823,1.8988,2486.0,2485.9,5.24062831]
[1748860943023,0.6023,2486.0,2485.9,6.54162831]
[1748860943618,1.40643,2486.0,2485.9,6.54162831]
[1748860944120,1.40643,2486.0,2485.9,7.74464535]
[1748860944616,0.6023,2486.0,2485.9,7.74464535]
[1748860945026,1.40643,2486.0,2485.9,7.74464535]
[1748860945322,1.40643,2486.0,2485.9,7.74476188]
[1748860946118,0.6023,2486.0,2485.9,7.74476188]
[1748860946424,19.3973,2486.0,2485.9,7.74476188]
[1748860946724,20.20143,2486.0,2485.9,7.74476188]
[1748860946921,20.20143,2486.0,2485.9,5.31296]
[1748860947126,20.20143,2486.0,2485.9,7.74478754]
[1748860948322,20.20143,2486.0,2485.9,7.74484171]
[1748860949126,20.20143,2486.0,2485.9,6.44384171]
[1748860949324,20.20143,2486.0,2485.9,6.44443494]
[1748860952130,19.3973,2486.0,2485.9,6.44443494]
[1748860952323,20.20143,2486.0,2485.9,7.78963494]
[1748860952932,20.20143,2486.0,2485.9,2.14936]
[1748860953229,20.19643,2486.0,2485.9,7.78979237]
[1748860954626,0.6023,2486.0,2485.9,6.58630416]
[1748860954827,0.6023,2486.0,2485.9,9.35765516]
[1748860955023,0.6023,2486.0,2485.9,6.52436]
[1748860955227,0.6023,2486.0,2485.9,43.55316379]
[1748860956530,0.6023,2486.0,2485.9,45.15689683]
[1748860957128,0.6023,2486.0,2485.9,43.92809304]
[1748860957331,0.6023,2486.0,2485.9,45.15716771]
[1748860958124,0.6023,2486.0,2485.9,45.95960803]
[1748860961129,0.6023,2486.0,2485.9,44.73053336]
[1748860961322,0.6023,2486.0,2485.9,45.15593741]
[1748860961524,0.6023,2486.0,2485.9,9.35593741]
[1748860962328,0.6023,2486.0,2485.9,7.75252594]
[1748860964932,0.6023,2486.0,2485.9,10.1586993]
[1748860965327,0.6023,2486.0,2485.9,7.75252594]
[1748860965931,0.6023,2486.0,2485.9,10.1586993]
[1748860966334,3.20621,2486.4,2486.3,0.80403]
[1748860966533,3.20621,2486.4,2486.3,2.03219594]
[1748860966534,21.98421,2486.4,2486.3,2.03219594]
[1748860969238,21.98421,2486.4,2486.3,2.03119135]
[1748860969740,21.98121,2486.4,2486.3,2.03119135]
[1748860972236,21.97921,2486.4,2486.3,2.03119135]
[1748860973340,2.4022,2486.4,2486.3,2.0315784]
[1748860973537,21.9782,2486.4,2486.3,2.0315784]
[1748860973745,21.9772,2486.4,2486.3,2.0315784]
[1748860974437,2.4022,2486.4,2486.3,2.0315784]
[1748860974643,21.1732,2486.4,2486.3,2.0315784]
[1748860975245,21.1722,2486.4,2486.3,2.0315784]
[1748860975443,21.9762,2486.4,2486.3,2.0315784]
[1748860975746,23.2675,2486.4,2486.3,2.0315784]
[1748860976637,22.4635,2486.4,2486.3,2.0315784]
[1748860976934,1.1848,2486.4,2486.3,2.0315784]
[1748860977134,19.9538,2486.4,2486.3,2.0315784]
[1748860977335,19.9538,2486.4,2486.3,2.03128864]
[1748860977546,20.7578,2486.4,2486.3,2.03128864]
[1748860977842,19.9538,2486.4,2486.3,2.03128864]
[1748860979143,19.9538,2486.4,2486.3,2.0313899]
[1748860980546,20.7578,2486.4,2486.3,2.0313899]
[1748860980741,22.03,2486.4,2486.3,2.0313899]
[1748860981044,22.03,2486.4,2486.3,2.03175276]
[1748860981252,22.03,2486.4,2486.3,1.22772276]
[1748860981636,30.2378,2486.4,2486.3,1.22772276]
[1748860981842,0.8041,2486.1,2486.0,2.4456]
[1748860982044,0.8041,2486.1,2486.0,3.67404344]
[1748860982738,2.1062,2486.1,2486.0,3.67404344]
[1748860983640,0.80413,2486.0,2485.9,0.80416]
[1748860983832,3.30453,2486.0,2485.9,2.03239426]
[1748860984037,3.30453,2486.0,2485.9,6.05479426]
[1748860984247,10.7082,2486.0,2485.6,1.2027272]
[1748860984440,0.80426,2485.6,2485.5,0.00604558]
[1748860984748,18.762,2485.6,2485.5,0.81033558]
[1748860984949,1.3949,2485.8,2485.7,0.80423]
[1748860985147,20.9611,2485.8,2485.7,0.80423]
[1748860985442,19.0146,2485.9,2485.8,0.8042]
[1748860985648,19.0146,2485.9,2485.8,4.012]
[1748860986655,19.81876,2485.9,2485.8,4.012]
[1748860987448,19.0146,2485.9,2485.8,4.012]
[1748860987755,20.2956,2485.9,2485.8,4.012]
[1748860987946,19.0146,2485.9,2485.8,4.012]
[1748860988444,19.81876,2485.9,2485.8,4.012]
[1748860989044,19.0146,2485.9,2485.8,4.012]
[1748860989655,19.81876,2485.9,2485.8,4.012]
[1748860989949,19.0146,2485.9,2485.8,4.012]
[1748860990340,19.0146,2485.9,2485.8,5.2386]
[1748860990953,0.2526,2485.9,2485.8,5.2386]
[1748860991248,19.0116,2485.9,2485.8,5.2386]
[1748860991548,0.2526,2485.9,2485.8,5.2386]
[1748860991754,19.0116,2485.9,2485.8,5.2386]
[1748860993839,19.0116,2485.9,2485.8,6.43926992]
[1748860994240,19.0116,2485.9,2485.8,7.70396992]
[1748860995355,0.2526,2485.9,2485.8,7.70398869]
[1748860995549,0.80404,2486.3,2486.2,0.80407]
[1748860995751,2.00818,2486.5,2486.4,0.804]
[1748860995956,20.76518,2486.5,2486.4,0.804]
[1748860996345,20.76518,2486.5,2486.4,2.02279251]
[1748860997446,20.76518,2486.5,2486.4,1.21879251]
[1748860997750,0.80403,2486.3,2486.2,0.80406]
[1748860997952,0.80403,2486.3,2486.2,2.02295451]
[1748860998355,0.80403,2486.3,2486.2,1.21889451]
[1748860998551,1.93303,2486.3,2486.2,2.02296451]
[1748860998943,20.68703,2486.3,2486.2,2.02296451]
[1748860999351,22.07353,2486.3,2486.2,2.02296451]
[1748860999551,22.07353,2486.3,2486.2,0.80407]
[1748860999744,22.07353,2486.3,2486.2,5.23071941]
[1748860999745,22.07253,2486.3,2486.2,5.23071941]
[1748860999948,3.31953,2486.3,2486.2,5.23071941]
[1748861000155,19.1033,2486.4,2486.3,0.80403]
[1748861000353,19.1033,2486.4,2486.3,2.02287941]
[1748861000554,19.9073,2486.4,2486.3,2.02287941]
[1748861000955,1.1543,2486.4,2486.3,0.80403]
[1748861001260,19.9063,2486.4,2486.3,2.02284409]
[1748861002861,19.9063,2486.4,2486.3,3.31764409]
[1748861003356,1.1543,2486.4,2486.3,3.31764409]
[1748861003559,0.3503,2486.4,2486.3,3.31764409]
[1748861003768,1.1543,2486.4,2486.3,3.31762721]
[1748861004355,0.3503,2486.4,2486.3,3.31762721]
[1748861004860,0.3503,2486.4,2486.3,4.50562721]
[1748861005456,1.1543,2486.4,2486.3,4.50562721]
[1748861005657,0.3503,2486.4,2486.3,4.50562721]
[1748861006460,0.3503,2486.4,2486.3,7.71342721]
[1748861007660,0.3503,2486.4,2486.3,7.71382831]
[1748861009360,0.3503,2486.4,2486.3,8.91442438]
[1748861009562,0.3503,2486.4,2486.3,7.71382831]
[1748861009863,0.3503,2486.4,2486.3,8.91442438]
[1748861010263,1.1122,2486.9,2486.3,11.90979831]
[1748861010566,19.8562,2486.9,2486.8,4.01167]
[1748861010767,1.1122,2486.9,2486.8,4.01167]
[1748861010966,19.8562,2486.9,2486.8,5.22961764]
[1748861011365,0.8038,2487.1,2487.0,0.80381]
[1748861011668,0.8038,2487.1,2486.9,0.80381]
[1748861011669,0.80384,2487.0,2486.9,0.80381]
[1748861011860,0.80384,2487.0,2486.8,3.21383318]
[1748861011861,0.80384,2486.9,2486.8,0.80987318]
[1748861015761,19.54284,2486.9,2486.8,0.80987318]
[1748861016468,2.08042,2487.0,2486.9,0.80384]
[1748861016662,20.81842,2487.0,2486.9,0.80384]
[1748861018468,20.81642,2487.0,2486.9,0.80384]
[1748861018670,2.08042,2487.0,2486.9,0.80384]
[1748861018969,20.81642,2487.0,2486.9,0.80384]
[1748861019973,2.08042,2487.0,2486.9,0.80384]
[1748861020167,20.81542,2487.0,2486.9,0.80384]
[1748861020359,20.0116,2487.0,2486.9,0.80384]
[1748861020564,20.81541,2487.0,2486.9,0.80384]
[1748861022871,0.80384,2486.9,2486.8,0.00603318]
[1748861023070,2.17204,2486.9,2486.8,0.00603318]
[1748861028872,5.38898783,2486.9,2486.8,0.00603318]
[1748861029376,2.17204,2486.9,2486.8,0.00603318]
[1748861029775,5.38898783,2486.9,2486.8,0.00603318]
[1748861034177,2.17204,2486.9,2486.8,0.00603318]
[1748861042974,7.17204,2486.9,2486.8,3.18e-06]
[1748861043687,11.19322479,2486.9,2486.8,3.18e-06]
[1748861047383,0.80413,2486.0,2485.9,4.9899]
[1748861047692,19.52213,2486.0,2485.9,3.8608]
[1748861048495,20.86273,2486.0,2485.9,3.8608]
[1748861048685,19.52213,2486.0,2485.9,3.8608]
[1748861049390,19.52213,2486.0,2485.9,4.9633]
[1748861049894,0.80413,2486.0,2485.9,4.9633]
[1748861050093,19.52113,2486.0,2485.9,4.9633]
[1748861050496,19.52113,2486.0,2485.9,3.8608]
[1748861050693,20.86173,2486.0,2485.9,3.8608]
[1748861053599,20.86173,2486.0,2485.7,0.00603318]
[1748861053600,0.80419,2485.8,2485.7,0.00603318]
[1748861053898,0.80419,2485.8,2485.3,1.1435]
[1748861053899,0.80432,2485.4,2485.3,1.1435]
[1748861054194,2.01069,2485.6,2485.2,5.7495]
[1748861054195,0.80435,2485.3,2485.2,5.7495]
[1748861054498,19.52035,2485.3,2485.2,2.5417]
[1748861054700,19.52035,2485.3,2485.2,1.16]
[1748861055000,0.80442,2485.1,2485.0,0.00603318]
[1748861055694,0.80442,2485.1,2484.8,4.8272]
[1748861055695,0.80448,2484.9,2484.8,4.8272]
[1748861055890,0.80455,2484.7,2484.6,1.2987]
[1748861056311,0.80458,2484.6,2484.5,2.237]
[1748861056500,19.51958,2484.6,2484.5,2.237]
[1748861057695,0.80465,2484.4,2484.3,0.00603318]
[1748861058800,0.80474,2484.1,2484.0,1.1161]
[1748861059495,3.2078,2484.6,2484.0,6.1161]
[1748861059696,18.717,2484.5,2484.2,3.2078]
[1748861060004,18.717,2484.5,2484.4,0.80462]
[1748861060191,0.80465,2484.4,2484.3,1.2853]
[1748861060393,19.52163,2484.5,2484.3,2.08996]
[1748861060802,0.80465,2484.4,2484.3,1.2853]
[1748861060996,19.52465,2484.4,2484.3,1.2853]
[1748861061301,0.80465,2484.4,2484.3,1.2853]
[1748861061492,19.52465,2484.4,2484.3,1.2853]
[1748861069801,0.80471,2484.2,2484.1,0.00603318]
[1748861070506,2.08881,2484.2,2484.1,0.00603318]
[1748861070707,0.80471,2484.2,2484.1,0.00603318]
[1748861071325,0.80487,2483.7,2483.6,3.2078]
[1748861071511,4.02382,2484.1,2483.0,7.3922]
[1748861071512,0.8049,2483.6,2483.5,2.4837]
[1748861071706,19.5229,2483.6,2483.5,2.4837]
[1748861072302,0.8049,2483.6,2483.5,3.28864]
[1748861072509,0.00603318,2483.8,2483.7,0.80487]
[1748861073806,0.81087318,2483.8,2483.7,0.80487]
[1748861074514,0.8049,2483.7,2483.6,0.80488]
[1748861075112,0.8049,2483.7,2483.6,5.80488]
[1748861075317,18.72403318,2483.8,2483.5,3.28861]
[1748861075318,0.8049,2483.6,2483.5,3.28861]
[1748861075506,0.8049,2483.6,2483.5,4.50819527]
[1748861076914,0.8049,2483.6,2483.5,4.5085838]
[1748861077514,18.72403318,2483.8,2483.5,3.7036738]
[1748861077720,19.52889318,2483.8,2483.7,0.80487]
[1748861080319,19.52889318,2483.8,2483.7,1.22244733]
[1748861080711,0.80487,2483.7,2483.6,3.30319]
[1748861081019,0.80487,2483.7,2483.6,4.52571181]
[1748861082317,0.80487,2483.7,2483.6,5.7248694]
[1748861083411,0.80487,2483.7,2483.6,4.3962694]
[1748861083613,2.15867,2483.7,2483.6,4.3962694]
[1748861084218,2.15867,2483.7,2483.6,4.79834082]
[1748861084822,2.15867,2483.7,2483.6,3.99345082]
[1748861085322,2.15867,2483.7,2483.6,4.79835082]
[1748861085715,2.15867,2483.7,2483.6,2.39222181]
[1748861086329,2.15867,2483.7,2483.6,3.99345082]
[1748861086824,2.15867,2483.7,2483.6,3.19712181]
[1748861087014,2.15867,2483.7,2483.6,2.39222181]
[1748861087215,2.15867,2483.7,2483.6,3.19712181]
[1748861087411,2.15867,2483.7,2483.6,4.79835082]
[1748861087619,2.15867,2483.7,2483.6,2.02742181]
[1748861087818,2.76257,2483.7,2483.6,2.02742181]
[1748861088018,2.76257,2483.7,2483.6,1.22252181]
[1748861088425,2.76257,2483.7,2483.6,2.4266382]
[1748861088820,2.76257,2483.7,2483.6,1.22252181]
[1748861092726,0.80497,2483.4,2483.3,1.2101148]
[1748861092929,0.80497,2483.4,2483.3,2.43760069]
[1748861093232,0.80497,2483.4,2483.3,1.23351907]
[1748861093432,0.80497,2483.4,2483.3,0.00603318]
[1748861093631,1.94927,2483.4,2483.3,0.00603318]
[1748861097530,20.66027,2483.4,2483.3,0.00603318]
[1748861097933,21.97757,2483.4,2483.3,0.00603318]
[1748861098732,0.8051,2483.0,2482.9,3.69231023]
[1748861098932,0.8051,2483.0,2482.9,4.91919316]
[1748861099433,0.8051,2483.0,2482.9,4.91912317]
[1748861100431,0.8051,2483.0,2482.9,2.43042317]
[1748861100630,0.80516,2482.8,2482.7,4.81656592]
[1748861100833,19.51516,2482.8,2482.7,3.21186348]
[1748861101032,19.51516,2482.8,2482.7,4.43888288]
[1748861101430,19.51516,2482.8,2482.7,1.23108288]
[1748861102038,20.85156,2482.8,2482.7,1.23108288]
[1748861102732,20.85156,2482.8,2482.7,0.00406348]
[1748861103238,3.2078,2483.3,2482.7,11.45101642]
[1748861103433,0.80508,2483.1,2483.0,0.80507]
[1748861103634,0.80508,2483.1,2483.0,2.03123294]
[1748861104340,0.80508,2483.1,2483.0,1.22616294]
[1748861105439,0.80513,2482.9,2482.8,1.1665]
[1748861105641,0.80513,2482.9,2482.8,2.39254747]
[1748861106935,0.80513,2482.9,2482.8,2.39254844]
[1748861108138,3.2078,2483.3,2482.8,2.39254844]
[1748861108442,0.80507,2483.1,2483.0,3.2078]
[1748861108638,0.80507,2483.1,2483.0,4.43392506]
[1748861108851,0.80513,2482.9,2482.8,1.97164]
[1748861109139,0.80513,2482.9,2482.8,3.19776569]
[1748861109329,19.51213,2483.0,2482.9,0.80511]
[1748861109532,19.51213,2483.0,2482.9,1.22612569]
[1748861110846,0.80513,2482.9,2482.8,1.97166]
[1748861111040,0.80513,2483.0,2482.9,0.80509]
[1748861111240,0.80513,2482.9,2482.8,3.17473045]
[1748861111438,0.80513,2482.9,2482.8,4.40126627]
[1748861111742,0.80513,2482.9,2482.8,3.59611627]
[1748861112741,0.80513,2482.9,2482.8,3.19819582]
[1748861115335,0.604,2483.1,2483.0,8.29193582]
[1748861115542,1.40907,2483.1,2483.0,8.29193582]
[1748861116140,0.604,2483.1,2483.0,8.29193582]
[1748861116335,0.604,2483.1,2483.0,4.89663826]
[1748861116536,19.50898,2483.4,2483.3,0.80497]
[1748861116749,19.50898,2483.4,2483.3,4.62450582]
[1748861116941,19.50898,2483.4,2483.3,5.82910189]
[1748861117341,18.704,2483.4,2483.3,4.62450582]
[1748861117546,22.71576,2483.5,2483.4,0.80497]
[1748861117746,22.71576,2483.5,2483.4,3.42280582]
[1748861117947,22.71576,2483.5,2483.4,4.62761396]
[1748861118147,4.01276,2483.5,2483.4,4.55760582]
[1748861118346,19.50696,2483.5,2483.4,5.76241396]
[1748861121142,18.702,2483.5,2483.4,5.76241396]
[1748861121346,5.22595318,2483.8,2483.4,6.96980396]
[1748861121554,0.80494,2483.6,2483.5,3.30503582]
[1748861122550,0.80494,2483.6,2483.5,4.51153862]
[1748861122750,0.80494,2483.6,2483.5,3.30672026]
[1748861123054,19.50394,2483.6,2483.5,3.30672026]
[1748861126750,19.50394,2483.6,2483.5,3.30586902]
[1748861127651,0.80494,2483.6,2483.5,3.30586902]
[1748861127948,0.00603318,2483.8,2483.7,0.80487]
[1748861128152,0.00603318,2483.8,2483.7,5.24003902]
[1748861128757,0.00603318,2483.8,2483.7,6.56123902]
[1748861128951,0.81087318,2483.8,2483.7,6.56123902]
[1748861129158,0.00603318,2483.8,2483.7,6.56123902]
[1748861129751,0.81087318,2483.8,2483.7,6.56123902]
[1748861130550,0.81087318,2483.8,2483.7,6.56047229]
[1748861130760,0.00603318,2483.8,2483.7,6.56047229]
[1748861131867,0.81087318,2483.8,2483.7,6.56047229]
[1748861132063,0.00603318,2483.8,2483.7,6.56047229]
[1748861132469,0.81087318,2483.8,2483.7,6.56047229]
[1748861134467,0.81087318,2483.8,2483.7,6.56049024]
[1748861135974,0.00603318,2483.8,2483.7,6.56049024]
[1748861138573,0.00603318,2483.8,2483.7,6.56068223]
[1748861139178,0.81087318,2483.8,2483.7,6.56068223]
[1748861139476,0.81087318,2483.8,2483.7,5.23948223]
[1748861139669,0.81087318,2483.8,2483.7,4.43461223]
[1748861139878,3.35207318,2483.8,2483.7,4.43461223]
[1748861140177,6.55987318,2483.8,2483.7,1.22681223]
[1748861142575,6.55987318,2483.8,2483.7,1.23626308]
[1748861142978,3.35207318,2483.8,2483.7,1.23626308]
[1748861144279,3.35207318,2483.8,2483.7,2.04113308]
[1748861144481,3.35207318,2483.8,2483.7,1.23626308]
[1748861144672,3.35207318,2483.8,2483.7,2.04113308]
[1748861144872,3.35207318,2483.8,2483.7,1.23626308]
[1748861147779,6.55987318,2483.8,2483.7,1.23626308]
[1748861150385,0.80494,2483.5,2483.4,2.01131008]
[1748861150590,0.80494,2483.5,2483.4,3.24950598]
[1748861150979,0.80494,2483.5,2483.4,2.44454598]
[1748861151185,2.15224,2483.5,2483.4,2.44454598]
[1748861151489,2.15224,2483.5,2483.4,3.24951598]
[1748861151879,2.15224,2483.5,2483.4,2.44454598]
[1748861152784,2.15224,2483.5,2483.4,3.24951598]
[1748861153179,2.15224,2483.5,2483.4,2.44454598]
[1748861153783,2.15224,2483.5,2483.4,3.24951598]
[1748861153982,2.15224,2483.5,2483.4,2.44454598]
[1748861154285,18.68,2483.5,2483.4,5.25071057]
[1748861154481,3.32590318,2483.8,2483.7,0.80487]
[1748861154685,22.00590318,2483.8,2483.7,2.04281057]
[1748861155589,0.00603318,2483.8,2483.7,6.45666178]
[1748861155883,0.00603318,2483.8,2483.7,5.25061057]
[1748861156088,0.00603318,2483.8,2483.7,8.21073867]
[1748861157177,0.81087318,2483.8,2483.7,8.21073867]
[1748861157380,0.81087318,2483.8,2483.7,5.00293867]
[1748861158184,0.81087318,2483.8,2483.7,5.00277503]
[1748861159497,0.81087318,2483.8,2483.7,8.21054395]
[1748861159694,0.00603318,2483.8,2483.7,8.21054395]
[1748861161191,0.00603318,2483.8,2483.7,8.21051384]
[1748861163688,0.00603318,2483.8,2483.7,7.81005027]
[1748861164096,0.00603318,2483.8,2483.7,6.60438574]
[1748861164297,0.81087318,2483.8,2483.7,6.60438574]
[1748861164597,0.00603318,2483.8,2483.7,6.60438574]
[1748861164797,0.00603318,2483.8,2483.7,6.6041929]
[1748861165898,0.81087318,2483.8,2483.7,6.6041929]
[1748861166101,0.00603318,2483.8,2483.7,6.6041929]
[1748861167194,0.00603318,2483.8,2483.7,7.80987067]
[1748861167499,0.00603318,2483.8,2483.7,6.6041929]
[1748861167695,0.00603318,2483.8,2483.7,7.80987067]
[1748861167895,1.1951,2484.3,2484.2,0.80471]
[1748861168194,21.8788,2484.4,2484.3,0.80468]
[1748861168499,0.80461,2484.6,2484.5,0.80461]
[1748861168693,0.80461,2484.5,2484.4,3.28931]
[1748861168899,0.80461,2484.6,2484.5,0.80458]
[1748861169202,19.47561,2484.6,2484.5,0.80458]
[1748861169795,0.80468,2484.3,2484.2,2.01468105]
[1748861170001,0.80468,2484.3,2484.2,3.21649399]
[1748861170705,0.80468,2484.3,2484.2,1.24188399]